fUSD/lending_fUSD_20250204
["ID","MTS","AMOUNT","RATE_DAILY","PERIOD"]
[351593742,1738651886598,-1271.77,9.138e-05,2]
[351593743,1738651886607,-1243.17,9.138e-05,2]
[351593744,1738651886616,-500.0,9.138e-05,2]
[351593745,1738651886626,-810.41,9.138e-05,2]
[351593746,1738651886636,-500.0,9.138e-05,2]
[351593747,1738651886647,-1701.57,9.138e-05,2]
[351593748,1738651886657,-500.0,9.138e-05,2]
[351593749,1738651886666,-500.0,9.138e-05,2]
[351593750,1738651886676,-500.0,9.138e-05,2]
[351593751,1738651886685,-1227.61,9.138e-05,2]
[351593752,1738651886695,-1258.33,9.138e-05,2]
[351593753,1738651886704,-611.49981815,9.138e-05,2]
[351593754,1738651886714,-500.0,9.138e-05,2]
[351593755,1738651886724,-533.93,9.138e-05,2]
[351593756,1738651886734,-502.36675596,9.138e-05,2]
[351593757,1738651886743,-500.0,9.138e-05,2]
[351593758,1738651886753,-500.0,9.138e-05,2]
[351593759,1738651886763,-1867.62,9.138e-05,2]
[351593760,1738651886776,-500.0,9.138e-05,2]
[351593761,1738651886785,-500.0,9.138e-05,2]
[351593762,1738651886795,-500.0,9.138e-05,2]
[351593763,1738651886805,-500.0,9.138e-05,2]
[351593764,1738651886814,-2414.87,9.138e-05,2]
[351593765,1738651886824,-1692.34,9.138e-05,2]
[351593766,1738651886833,-974.44,9.138e-05,2]
[351593767,1738651886843,-2119.85,9.138e-05,2]
[351593768,1738651886852,-500.0,9.138e-05,2]
[351593769,1738651886862,-504.4816636,9.138e-05,2]
[351593770,1738651886871,-500.0,9.138e-05,2]
[351593771,1738651886881,-500.0,9.138e-05,2]
[351593772,1738651886891,-608.12,9.138e-05,2]
[351593773,1738651886901,-500.0,9.138e-05,7]
[351593774,1738651886911,-502.22560674,9.138e-05,2]
[351593775,1738651886920,-500.0,9.138e-05,2]
[351593776,1738651886931,-706.35,9.138e-05,2]
[351593777,1738651887144,-980.64,9.138e-05,2]
[351593778,1738651887155,-557.68,9.138e-05,2]
[351593779,1738651887164,-500.0,9.138e-05,2]
[351593780,1738651887174,-1544.16,9.138e-05,2]
[351593781,1738651887184,-1127.81,9.138e-05,2]
[351593782,1738651887196,-504.09144907,9.138e-05,2]
[351593783,1738651887206,-962.28,9.138e-05,2]
[351593784,1738651887216,-500.0,9.138e-05,2]
[351593785,1738651887225,-842.89,9.138e-05,2]
[351593786,1738651887235,-583.68,9.138e-05,2]
[351593787,1738651887245,-880.05,9.138e-05,2]
[351593788,1738651887255,-1664.57,9.138e-05,2]
[351593789,1738651887264,-500.0,9.138e-05,2]
[351593790,1738651887276,-500.0,9.138e-05,2]
[351593791,1738651887286,-1460.87,9.138e-05,2]
[351593792,1738651887295,-537.15,9.138e-05,2]
[351593793,1738651887305,-2650.59,9.138e-05,2]
[351593794,1738651887315,-1032.75,9.138e-05,2]
[351593795,1738651887324,-500.0,9.139e-05,2]
[351593796,1738651887334,-500.0,9.139e-05,2]
[351593797,1738651887343,-500.0,9.139e-05,2]
[351593798,1738651887353,-500.0,9.139e-05,2]
[351593799,1738651887362,-500.0,9.139e-05,2]
[351593800,1738651887372,-500.0,9.139e-05,2]
[351593801,1738651887382,-556.49700233,9.139e-05,2]
[351593802,1738651887392,-500.0,9.139e-05,2]
[351593803,1738651887402,-500.0,9.139e-05,2]
[351593804,1738651887412,-599.07106564,9.139e-05,2]
[351593805,1738651887421,-220.62634059,9.139e-05,2]
[351593806,1738651887431,-494.84326508,9.139e-05,2]
[351593807,1738651887441,-634.26270139,9.139e-05,2]
[351593808,1738651887452,-500.0,9.139e-05,2]
[351593809,1738651887462,-500.0,9.139e-05,2]
[351593810,1738651887471,-389.84398118,9.139e-05,2]
[351593811,1738651887481,-500.0,9.139e-05,2]
[351593812,1738651887491,-548.71007766,9.139e-05,2]
[351593813,1738651887502,-295.31070414,9.139e-05,2]
[351593814,1738651887511,-500.0,9.139e-05,2]
[351593815,1738651887524,-500.70848269,9.139e-05,2]
[351593816,1738651887534,-500.71507418,9.139e-05,2]
[351593817,1738651887543,-500.79438262,9.139e-05,2]
[351593818,1738651887553,-1816.98,9.139e-05,2]
[351593819,1738651887567,-500.0,9.139e-05,2]
[351593820,1738651887578,-800.32,9.139e-05,2]
[351593821,1738651887589,-2661.74,9.139e-05,2]
[351593822,1738651887599,-3559.44,9.139e-05,2]
[351593823,1738651887609,-500.0,9.139e-05,2]
[351593824,1738651887620,-1000.2,9.139e-05,2]
[351593825,1738651887630,-1789.57,9.139e-05,2]
[351593826,1738651887640,-1346.06,9.139e-05,2]
[351593827,1738651887650,-500.0,9.139e-05,2]
[351593828,1738651887660,-500.0,9.139e-05,2]
[351593829,1738651887669,-500.0,9.139e-05,2]
[351593830,1738651887679,-1910.87,9.139e-05,2]
[351593831,1738651887689,-574.03,9.139e-05,2]
[351593832,1738651887699,-1533.37,9.139e-05,2]
[351593833,1738651887709,-1637.92,9.139e-05,2]
[351593834,1738651887719,-500.0,9.139e-05,2]
[351593835,1738651887728,-347.61,9.139e-05,2]
[351593836,1738651887738,-2100.89,9.139e-05,2]
[351593837,1738651887748,-1545.56,9.139e-05,2]
[351593838,1738651887758,-1220.82,9.139e-05,2]
[351593839,1738651887767,-1891.37,9.139e-05,2]
[351593840,1738651887781,-1353.58,9.139e-05,2]
[351593841,1738651887791,-500.0,9.139e-05,2]
[351593842,1738651887802,-1547.3,9.139e-05,2]
[351593843,1738651887814,-1583.7,9.139e-05,2]
[351593844,1738651887823,-1928.93,9.139e-05,2]
[351593845,1738651887833,-951.36,9.139e-05,2]
[351593846,1738651887846,-1905.83,9.139e-05,2]
[351593847,1738651887857,-2772.81,9.139e-05,2]
[351593848,1738651887867,-1936.34,9.139e-05,2]
[351593849,1738651887878,-1218.2,9.139e-05,2]
[351593850,1738651887888,-760.65,9.139e-05,2]
[351593851,1738651887898,-1833.02,9.139e-05,2]
[351593852,1738651887908,-1760.21,9.139e-05,2]
[351593853,1738651887918,-1969.26,9.139e-05,2]
[351593854,1738651887928,-557.17,9.139e-05,2]
[351593855,1738651887938,-2207.04,9.139e-05,2]
[351593856,1738651887948,-1067.3,9.139e-05,2]
[351593857,1738651887958,-1711.85,9.139e-05,2]
[351593858,1738651887970,-606.13,9.139e-05,2]
[351593859,1738651887980,-949.48,9.139e-05,2]
[351593860,1738651887990,-949.48,9.139e-05,2]
[351593861,1738651888001,-949.48,9.139e-05,2]
[351593862,1738651888011,-949.48,9.139e-05,2]
[351593863,1738651888024,-949.63882144,9.139e-05,2]
[351593864,1738651888035,-1026.18,9.139e-05,2]
[351593865,1738651888045,-579.86,9.139e-05,2]
[351593866,1738651888055,-991.53,9.139e-05,2]
[351593867,1738651888065,-1828.91,9.139e-05,2]
[351593868,1738651888075,-1160.19,9.139e-05,2]
[351593869,1738651888086,-500.0,9.139e-05,2]
[351593870,1738651888096,-1961.27,9.139e-05,2]
[351593871,1738651888110,-500.0,9.14e-05,2]
[351593872,1738651888123,-503.46,9.14e-05,2]
[351593873,1738651888132,-500.0,9.14e-05,2]
[351593874,1738651888142,-500.0,9.14e-05,2]
[351593875,1738651888154,-500.0,9.14e-05,2]
[351593876,1738651888165,-500.0,9.14e-05,2]
[351593877,1738651888175,-637.81,9.14e-05,2]
[351593878,1738651888185,-500.0,9.14e-05,2]
[351593879,1738651888196,-500.0,9.14e-05,2]
[351593880,1738651888206,-500.0,9.14e-05,2]
[351593881,1738651888216,-500.0,9.14e-05,2]
[351593882,1738651888227,-500.0,9.14e-05,2]
[351593883,1738651888236,-500.0,9.14e-05,2]
[351593884,1738651888246,-500.0,9.14e-05,2]
[351593885,1738651888255,-848.3,9.14e-05,2]
[351593886,1738651888266,-500.0,9.14e-05,2]
[351593887,1738651888280,-500.0,9.14e-05,2]
[351593888,1738651888290,-501.98262,9.14e-05,2]
[351593889,1738651888300,-500.0,9.14e-05,2]
[351593890,1738651888310,-500.0,9.14e-05,2]
[351593891,1738651888320,-617.18,9.14e-05,2]
[351593892,1738651888330,-500.0,9.14e-05,2]
[351593893,1738651888339,-508.12,9.14e-05,2]
[351593894,1738651888349,-1325.81,9.14e-05,2]
[351593895,1738651888358,-500.0,9.14e-05,2]
[351593896,1738651888368,-667.07,9.14e-05,2]
[351593897,1738651888378,-500.0,9.14e-05,2]
[351593898,1738651888388,-500.0,9.14e-05,2]
[351593899,1738651888397,-500.0,9.14e-05,2]
[351593900,1738651888407,-1020.47,9.14e-05,2]
[351593901,1738651888416,-500.0,9.14e-05,2]
[351593902,1738651888425,-500.0,9.14e-05,2]
[351593903,1738651888435,-500.0,9.14e-05,2]
[351593904,1738651888444,-500.0,9.14e-05,2]
[351593905,1738651888453,-971.18,9.14e-05,2]
[351593906,1738651888462,-1055.22,9.14e-05,2]
[351593907,1738651888472,-601.82,9.14e-05,2]
[351593908,1738651888481,-500.0,9.14e-05,2]
[351593909,1738651888490,-500.0,9.14e-05,2]
[351593910,1738651888499,-500.0,9.14e-05,2]
[351593911,1738651888509,-584.0,9.14e-05,2]
[351593912,1738651888518,-500.0,9.14e-05,2]
[351593913,1738651888529,-664.68,9.14e-05,2]
[351593914,1738651888539,-693.7,9.14e-05,2]
[351593915,1738651888548,-500.0,9.14e-05,2]
[351593916,1738651888557,-500.0,9.14e-05,2]
[351593917,1738651888567,-500.0,9.14e-05,2]
[351593918,1738651888576,-500.0,9.14e-05,2]
[351593919,1738651888586,-910.68,9.14e-05,2]
[351593920,1738651888595,-500.0,9.14e-05,2]
[351593921,1738651888605,-949.48,9.14e-05,2]
[351593922,1738651888614,-649.65,9.14e-05,2]
[351593923,1738651888623,-500.0,9.14e-05,2]
[351593924,1738651888632,-737.64,9.14e-05,2]
[351593925,1738651888642,-500.0,9.14e-05,2]
[351593926,1738651888651,-500.0,9.14e-05,2]
[351593927,1738651888661,-500.0,9.14e-05,2]
[351593928,1738651888670,-500.0,9.14e-05,2]
[351593929,1738651888680,-585.58,9.14e-05,2]
[351593930,1738651888689,-500.0,9.14e-05,2]
[351593931,1738651888699,-500.0,9.14e-05,2]
[351593932,1738651888709,-507.34561122,9.14e-05,2]
[351593933,1738651888718,-500.0,9.14e-05,2]
[351593934,1738651888728,-497.92100025,9.14e-05,2]
[351593935,1738651888737,-500.0,9.14e-05,2]
[351593936,1738651888746,-500.0,9.14e-05,2]
[351593937,1738651888756,-502.67,9.14e-05,2]
[351593938,1738651888766,-500.0,9.14e-05,2]
[351593939,1738651888777,-708.74,9.14e-05,2]
[351593940,1738651888787,-500.0,9.14e-05,2]
[351593941,1738651888796,-500.0,9.14e-05,2]
[351593942,1738651888806,-621.2,9.14e-05,2]
[351593943,1738651888817,-1126.75,9.14e-05,2]
[351593944,1738651888827,-500.0,9.14e-05,2]
[351593945,1738651888838,-500.0,9.14e-05,2]
[351593946,1738651888847,-500.0,9.14e-05,2]
[351593947,1738651888856,-500.0,9.14e-05,2]
[351593948,1738651888866,-502.13547077,9.14e-05,2]
[351593949,1738651888875,-1267.09,9.14e-05,2]
[351593950,1738651888885,-500.0,9.14e-05,2]
[351593951,1738651888895,-1330.04,9.14e-05,2]
[351593952,1738651888904,-500.0,9.14e-05,2]
[351593953,1738651888913,-500.0,9.14e-05,2]
[351593954,1738651888923,-500.0,9.14e-05,2]
[351593955,1738651888932,-500.0,9.14e-05,2]
[351593956,1738651888942,-500.0,9.14e-05,2]
[351593957,1738651888952,-893.25,9.14e-05,2]
[351593958,1738651888961,-500.0,9.14e-05,2]
[351593959,1738651888971,-522.19,9.14e-05,2]
[351593960,1738651888980,-741.38,9.14e-05,2]
[351593961,1738651888990,-1262.08,9.14e-05,2]
[351593962,1738651889000,-500.0,9.14e-05,2]
[351593963,1738651889010,-500.0,9.14e-05,2]
[351593964,1738651889020,-500.0,9.14e-05,2]
[351593965,1738651889031,-500.0,9.14e-05,2]
[351593966,1738651889041,-649.6,9.14e-05,2]
[351593967,1738651889051,-1136.55,9.14e-05,2]
[351593968,1738651889061,-500.0,9.14e-05,2]
[351593969,1738651889071,-500.0,9.14e-05,2]
[351593970,1738651889080,-706.95,9.14e-05,2]
[351593971,1738651889090,-500.0,9.14e-05,2]
[351593972,1738651889101,-1345.97,9.14e-05,2]
[351593973,1738651889115,-500.0,9.14e-05,2]
[351593974,1738651889125,-500.0,9.14e-05,2]
[351593975,1738651889134,-500.0,9.14e-05,2]
[351593976,1738651889144,-500.0,9.14e-05,2]
[351593977,1738651889155,-504.16606581,9.14e-05,2]
[351593978,1738651889164,-507.13,9.14e-05,2]
[351593979,1738651889174,-732.49,9.14e-05,2]
[351593980,1738651889185,-1293.49,9.14e-05,2]
[351593981,1738651889195,-500.0,9.14e-05,2]
[351593982,1738651889205,-500.0,9.14e-05,2]
[351593983,1738651889214,-500.0,9.14e-05,2]
[351593984,1738651889224,-152.0,9.161e-05,5]
[351593985,1738651889235,-500.0,9.161e-05,2]
[351593986,1738651889244,-3721.0,9.161e-05,2]
[351593987,1738651889254,-167.54,9.164e-05,2]
[351593988,1738651889264,-22369.3,9.167e-05,4]
[351593989,1738651889276,-68456.52,9.167e-05,4]
[351593990,1738651889285,-35130.87,9.167e-05,4]
[351593991,1738651889295,-11561.37,9.167e-05,4]
[351593992,1738651889304,-424.58696516,9.18e-05,2]
[351593993,1738651889314,-500.0,9.189e-05,2]
[351593994,1738651889324,-3721.0,9.189e-05,2]
[351593995,1738651889333,-1000.0,9.191e-05,2]
[351593996,1738651889343,-100000.0,9.2e-05,2]
[351593997,1738651889352,-1583.7,9.2e-05,2]
[351593998,1738651889361,-1583.7,9.2e-05,2]
[351593999,1738651889371,-1583.7,9.2e-05,2]
[351594000,1738651889380,-1583.7,9.2e-05,2]
[351594001,1738651889390,-1583.87163508,9.2e-05,2]
[351594002,1738651889400,-2731.7,9.212e-05,2]
[351594003,1738651889410,-2597.79,9.212e-05,2]
[351594004,1738651889419,-1961.37,9.212e-05,2]
[351594005,1738651889429,-1780.96,9.212e-05,2]
[351594006,1738651889440,-500.0,9.212e-05,2]
[351594007,1738651889450,-792.21,9.212e-05,2]
[351594008,1738651889459,-500.0,9.212e-05,2]
[351594009,1738651889469,-3084.21,9.212e-05,2]
[351594010,1738651889479,-2443.54,9.212e-05,2]
[351594011,1738651889489,-1608.35,9.212e-05,2]
[351594012,1738651889499,-3326.15,9.212e-05,2]
[351594013,1738651889508,-1058.09,9.212e-05,2]
[351594014,1738651889518,-3802.84,9.212e-05,2]
[351594015,1738651889530,-3333.66,9.212e-05,2]
[351594016,1738651889539,-3287.56,9.212e-05,2]
[351594017,1738651889549,-3109.99,9.212e-05,2]
[351594018,1738651889558,-3571.14,9.212e-05,2]
[351594019,1738651889568,-3362.34,9.212e-05,2]
[351594020,1738651889578,-1037.7,9.212e-05,2]
[351594021,1738651889588,-3517.11,9.212e-05,2]
[351594022,1738651889598,-500.0,9.212e-05,2]
[351594023,1738651889608,-2639.94,9.212e-05,2]
[351594024,1738651889618,-665.18,9.212e-05,2]
[351594025,1738651889628,-1806.83,9.212e-05,2]
[351594026,1738651889638,-500.0,9.212e-05,2]
[351594027,1738651889648,-2956.17,9.212e-05,2]
[351594028,1738651889732,-634.35,9.212e-05,2]
[351594029,1738651889742,-1174.99,9.212e-05,2]
[351594030,1738651889751,-505.68,9.212e-05,2]
[351594031,1738651889761,-3489.81,9.212e-05,2]
[351594032,1738651889770,-2290.92,9.212e-05,2]
[351594033,1738651889779,-2152.55,9.212e-05,2]
[351594034,1738651889789,-1492.95,9.212e-05,2]
[351594035,1738651889798,-500.0,9.213e-05,2]
[351594036,1738651889808,-1386.25,9.213e-05,2]
[351594037,1738651889817,-573.38,9.213e-05,2]
[351594038,1738651889827,-1162.27,9.213e-05,2]
[351594039,1738651889837,-886.96,9.213e-05,2]
[351594040,1738651889847,-1960.06,9.213e-05,2]
[351594041,1738651889856,-500.0,9.213e-05,2]
[351594042,1738651889866,-1816.95,9.213e-05,2]
[351594043,1738651889875,-507.74,9.213e-05,2]
[351594044,1738651889885,-1692.58,9.213e-05,2]
[351594045,1738651889894,-500.0,9.213e-05,2]
[351594046,1738651889904,-1233.2,9.213e-05,2]
[351594047,1738651889913,-837.33,9.213e-05,2]
[351594048,1738651889923,-500.0,9.213e-05,2]
[351594049,1738651889932,-1065.99,9.213e-05,2]
[351594050,1738651889942,-500.0,9.213e-05,2]
[351594051,1738651889951,-1129.84,9.213e-05,2]
[351594052,1738651889961,-1504.93,9.213e-05,2]
[351594053,1738651889970,-1321.61,9.213e-05,2]
[351594054,1738651889980,-1364.66,9.213e-05,2]
[351594055,1738651889989,-745.69,9.213e-05,2]
[351594056,1738651889999,-1579.1,9.213e-05,2]
[351594057,1738651890009,-1941.246848,9.213e-05,2]
[351594058,1738651890019,-629.84,9.213e-05,2]
[351594059,1738651890030,-1596.8,9.213e-05,2]
[351594060,1738651890040,-500.0,9.213e-05,2]
[351594061,1738651890050,-986.75,9.213e-05,2]
[351594062,1738651890059,-879.57,9.213e-05,2]
[351594063,1738651890069,-500.0,9.213e-05,2]
[351594064,1738651890078,-500.0,9.213e-05,2]
[351594065,1738651890087,-628.73,9.213e-05,2]
[351594066,1738651890097,-500.0,9.213e-05,2]
[351594067,1738651890107,-1927.353361,9.213e-05,2]
[351594068,1738651890120,-500.0,9.213e-05,2]
[351594069,1738651890129,-628.63,9.213e-05,2]
[351594070,1738651890138,-1061.5,9.213e-05,2]
[351594071,1738651890149,-720.77,9.213e-05,2]
[351594072,1738651890159,-1583.49,9.213e-05,2]
[351594073,1738651890169,-1268.29,9.213e-05,2]
[351594074,1738651890178,-500.0,9.213e-05,2]
[351594075,1738651890190,-839.48,9.213e-05,2]
[351594076,1738651890199,-1688.73,9.213e-05,2]
[351594077,1738651890208,-1876.72,9.213e-05,2]
[351594078,1738651890218,-802.61,9.213e-05,2]
[351594079,1738651890228,-610.52,9.213e-05,2]
[351594080,1738651890239,-1840.23,9.213e-05,2]
[351594081,1738651890248,-622.05,9.213e-05,2]
[351594082,1738651890258,-1395.09,9.213e-05,2]
[351594083,1738651890268,-1984.41,9.213e-05,2]
[351594084,1738651890278,-500.0,9.213e-05,2]
[351594085,1738651890288,-573.41,9.213e-05,2]
[351594086,1738651890298,-500.0,9.213e-05,2]
[351594087,1738651890308,-504.15834154,9.213e-05,2]
[351594088,1738651890318,-500.0,9.213e-05,2]
[351594089,1738651890327,-702.06,9.213e-05,2]
[351594090,1738651890336,-1107.58,9.213e-05,2]
[351594091,1738651890346,-500.0,9.213e-05,2]
[351594092,1738651890355,-500.0,9.213e-05,2]
[351594093,1738651890365,-500.0,9.213e-05,2]
[351594094,1738651890374,-1023.87,9.213e-05,2]
[351594095,1738651890383,-340.89044306,9.213e-05,2]
[351594096,1738651890393,-500.0,9.213e-05,2]
[351594097,1738651890402,-2235.71,9.213e-05,2]
[351594098,1738651890412,-500.0,9.213e-05,2]
[351594099,1738651890421,-864.57,9.213e-05,2]
[351594100,1738651890431,-152.907822,9.213e-05,2]
[351594101,1738651890441,-1442.14,9.213e-05,2]
[351594102,1738651890450,-1526.09,9.213e-05,2]
[351594103,1738651890460,-500.0,9.213e-05,2]
[351594104,1738651890469,-749.13,9.213e-05,2]
[351594105,1738651890479,-500.0,9.213e-05,2]
[351594106,1738651890489,-871.17,9.213e-05,2]
[351594107,1738651890498,-1146.18,9.213e-05,2]
[351594108,1738651890508,-662.91,9.213e-05,2]
[351594109,1738651890518,-500.0,9.213e-05,2]
[351594110,1738651890531,-1009.64,9.213e-05,2]
[351594111,1738651890542,-2267.45,9.213e-05,2]
[351594112,1738651890552,-656.52,9.213e-05,2]
[351594113,1738651890562,-500.0,9.213e-05,2]
[351594114,1738651890571,-541.89,9.213e-05,2]
[351594115,1738651890581,-736.13,9.213e-05,2]
[351594116,1738651890590,-1760.16,9.213e-05,2]
[351594117,1738651890600,-2409.33,9.213e-05,2]
[351594118,1738651890609,-1852.54,9.213e-05,2]
[351594119,1738651890619,-2838.45,9.213e-05,2]
[351594120,1738651890629,-528.53,9.213e-05,2]
[351594121,1738651890638,-545.79,9.213e-05,2]
[351594122,1738651890647,-500.0,9.213e-05,2]
[351594123,1738651890656,-2890.01,9.213e-05,2]
[351594124,1738651890666,-500.0,9.213e-05,2]
[351594125,1738651890675,-2478.82,9.213e-05,2]
[351594126,1738651890684,-500.0,9.213e-05,2]
[351594127,1738651890693,-942.69,9.213e-05,2]
[351594128,1738651890703,-1246.43,9.213e-05,2]
[351594129,1738651890713,-500.0,9.213e-05,2]
[351594130,1738651890722,-2635.78,9.213e-05,2]
[351594131,1738651890732,-1761.95,9.213e-05,2]
[351594132,1738651890742,-500.0,9.213e-05,2]
[351594133,1738651890751,-793.19,9.213e-05,2]
[351594134,1738651890760,-2601.96,9.213e-05,2]
[351594135,1738651890769,-535.29397655,9.213e-05,2]
[351594136,1738651890781,-2705.26,9.213e-05,2]
[351594137,1738651890791,-1478.32,9.213e-05,2]
[351594138,1738651890801,-500.0,9.213e-05,2]
[351594139,1738651890811,-2173.93,9.213e-05,2]
[351594140,1738651890820,-2878.08,9.213e-05,2]
[351594141,1738651890829,-1170.31,9.213e-05,2]
[351594142,1738651890838,-500.0,9.213e-05,2]
[351594143,1738651890848,-2206.62,9.213e-05,2]
[351594144,1738651890858,-533.56,9.213e-05,2]
[351594145,1738651890868,-1881.39,9.213e-05,2]
[351594146,1738651890877,-2920.46,9.213e-05,2]
[351594147,1738651890887,-699.93,9.213e-05,2]
[351594148,1738651890898,-2040.45,9.213e-05,2]
[351594149,1738651890908,-500.0,9.213e-05,2]
[351594150,1738651890918,-2227.02,9.213e-05,2]
[351594151,1738651890927,-614.25,9.213e-05,2]
[351594152,1738651890937,-779.73,9.213e-05,2]
[351594153,1738651890947,-2094.99,9.213e-05,2]
[351594154,1738651890956,-1294.54,9.213e-05,2]
[351594155,1738651890966,-3429.21,9.213e-05,2]
[351594156,1738651890976,-500.0,9.213e-05,2]
[351594157,1738651890986,-500.0,9.213e-05,2]
[351594158,1738651890996,-500.0,9.213e-05,2]
[351594159,1738651891007,-2303.31,9.213e-05,2]
[351594160,1738651891017,-500.0,9.213e-05,2]
[351594161,1738651891029,-500.0,9.213e-05,2]
[351594162,1738651891039,-2519.6,9.213e-05,2]
[351594163,1738651891049,-596.06,9.213e-05,2]
[351594164,1738651891060,-540.23,9.213e-05,2]
[351594165,1738651891070,-3292.26,9.213e-05,2]
[351594166,1738651891079,-2116.61,9.213e-05,2]
[351594167,1738651891089,-4613.87,9.213e-05,2]
[351594168,1738651891100,-1583.36,9.213e-05,2]
[351594169,1738651891110,-3463.94,9.213e-05,2]
[351594170,1738651891123,-723.79,9.213e-05,2]
[351594171,1738651891133,-1828.01,9.213e-05,2]
[351594172,1738651891143,-500.0,9.213e-05,2]
[351594173,1738651891154,-2319.2,9.213e-05,2]
[351594174,1738651891164,-3655.1,9.213e-05,2]
[351594175,1738651891173,-500.0,9.213e-05,2]
[351594176,1738651891183,-500.0,9.213e-05,2]
[351594177,1738651891194,-2342.96,9.213e-05,2]
[351594178,1738651891205,-3953.69,9.213e-05,2]
[351594179,1738651891215,-1102.3,9.213e-05,2]
[351594180,1738651891225,-500.0,9.213e-05,2]
[351594181,1738651891236,-687.18,9.213e-05,2]
[351594182,1738651891246,-1381.74,9.213e-05,2]
[351594183,1738651891256,-500.0,9.213e-05,2]
[351594184,1738651891266,-2821.45,9.213e-05,2]
[351594185,1738651891277,-3735.43,9.213e-05,2]
[351594186,1738651891288,-500.0,9.213e-05,2]
[351594187,1738651891298,-458.65821729,9.213e-05,2]
[351594188,1738651891308,-578.47,9.213e-05,2]
[351594189,1738651891318,-4039.67,9.213e-05,2]
[351594190,1738651891328,-7208.32,9.213e-05,2]
[351594191,1738651891338,-500.0,9.213e-05,2]
[351594192,1738651891348,-4132.64,9.213e-05,2]
[351594193,1738651891359,-779.56,9.213e-05,2]
[351594194,1738651891368,-1096.53,9.213e-05,2]
[351594195,1738651891378,-502.85694734,9.213e-05,2]
[351594196,1738651891387,-695.86,9.213e-05,2]
[351594197,1738651891396,-500.0,9.213e-05,2]
[351594198,1738651891405,-1243.82,9.213e-05,2]
[351594199,1738651891415,-500.0,9.213e-05,2]
[351594200,1738651891425,-9349.12,9.213e-05,2]
[351594201,1738651891434,-767.74,9.213e-05,2]
[351594202,1738651891444,-1992.72,9.213e-05,2]
[351594203,1738651891453,-1043.64,9.213e-05,2]
[351594204,1738651891463,-590.61,9.213e-05,2]
[351594205,1738651891472,-500.0,9.213e-05,2]
[351594206,1738651891482,-500.0,9.213e-05,2]
[351594207,1738651891491,-3184.53,9.213e-05,2]
[351594208,1738651891500,-960.35,9.213e-05,2]
[351594209,1738651891510,-3457.48,9.213e-05,2]
[351594210,1738651891519,-543.03,9.213e-05,2]
[351594211,1738651891531,-567.99,9.213e-05,2]
[351594212,1738651891540,-500.0,9.213e-05,2]
[351594213,1738651891550,-1178.38,9.213e-05,2]
[351594214,1738651891559,-3649.67,9.213e-05,2]
[351594215,1738651891569,-568.89,9.213e-05,2]
[351594216,1738651891578,-336.79904158,9.213e-05,2]
[351594217,1738651891588,-3263.47,9.213e-05,2]
[351594218,1738651891597,-1509.83,9.213e-05,2]
[351594219,1738651891606,-2825.8,9.213e-05,2]
[351594220,1738651891616,-551.84,9.213e-05,2]
[351594221,1738651891625,-521.44,9.213e-05,2]
[351594222,1738651891635,-500.0,9.213e-05,2]
[351594223,1738651891644,-500.0,9.213e-05,2]
[351594224,1738651891653,-500.0,9.213e-05,2]
[351594225,1738651891663,-2253.1,9.213e-05,2]
[351594226,1738651891673,-531.39,9.213e-05,2]
[351594227,1738651891682,-2034.78,9.213e-05,2]
[351594228,1738651891692,-3059.11,9.213e-05,2]
[351594229,1738651891702,-1676.59,9.213e-05,2]
[351594230,1738651891711,-500.0,9.213e-05,2]
[351594231,1738651891721,-3067.77,9.213e-05,2]
[351594232,1738651891731,-811.45,9.213e-05,2]
[351594233,1738651891741,-704.39,9.213e-05,2]
[351594234,1738651891751,-1599.03,9.213e-05,2]
[351594235,1738651891761,-1503.5,9.213e-05,2]
[351594236,1738651891771,-509.80795102,9.213e-05,2]
[351594237,1738651891783,-1492.09,9.213e-05,2]
[351594238,1738651891793,-1793.52,9.213e-05,2]
[351594239,1738651891803,-500.0,9.213e-05,2]
[351594240,1738651891812,-532.79,9.213e-05,2]
[351594241,1738651891822,-602.67,9.213e-05,2]